[Event "Early-Titled-Tuesday-Blitz-March-05-2024"]
[Site "Chess.com"]
[Date "2024.03.05"]
[Round "7"]
[White "crazy_m_attack"]
[Black "BilicVladimir"]
[Result "0-1"]
[WhiteElo "2486"]
[BlackElo "2619"]
[TimeControl "180+1"]
[EndTime "9:20:07 PST"]
[Termination "BilicVladimir won on time"]

1. e4 {[%clk 0:03:00.9]} 1... c6 {[%clk 0:02:59.6]} 2. d4 {[%clk 0:03:00.5]}
2... d5 {[%clk 0:02:56.7]} 3. Nc3 {[%clk 0:03:01.4]} 3... dxe4 {[%clk
0:02:56.2]} 4. Nxe4 {[%clk 0:03:02.3]} 4... Nd7 {[%clk 0:02:55.7]} 5. Bc4 {[%clk
0:03:01.1]} 5... Ndf6 {[%clk 0:02:56.6]} 6. Ng5 {[%clk 0:03:00.7]} 6... Nd5
{[%clk 0:02:56.8]} 7. Ne2 {[%clk 0:02:49]} 7... h6 {[%clk 0:02:55.5]} 8. Nf3
{[%clk 0:02:47.9]} 8... Bf5 {[%clk 0:02:53.2]} 9. Bb3 {[%clk 0:02:45.9]} 9... e6
{[%clk 0:02:52.9]} 10. O-O {[%clk 0:02:44.3]} 10... Ngf6 {[%clk 0:02:52.2]} 11.
c4 {[%clk 0:02:43.8]} 11... Nc7 {[%clk 0:02:51.2]} 12. h3 {[%clk 0:02:39.9]}
12... Be7 {[%clk 0:02:51.3]} 13. Ng3 {[%clk 0:02:37.2]} 13... Bh7 {[%clk
0:02:50.4]} 14. Re1 {[%clk 0:02:33.6]} 14... O-O {[%clk 0:02:50.2]} 15. Bf4
{[%clk 0:02:31.8]} 15... a5 {[%clk 0:02:47.5]} 16. a3 {[%clk 0:02:31.6]} 16...
Nce8 {[%clk 0:02:35.9]} 17. Qd2 {[%clk 0:02:23.6]} 17... Nd6 {[%clk 0:02:34.9]}
18. Rad1 {[%clk 0:02:20.4]} 18... Nf5 {[%clk 0:02:34.2]} 19. Nxf5 {[%clk
0:02:09.3]} 19... Bxf5 {[%clk 0:02:33.4]} 20. Bc2 {[%clk 0:02:08.3]} 20... Bxc2
{[%clk 0:02:31.7]} 21. Qxc2 {[%clk 0:02:09.2]} 21... Re8 {[%clk 0:02:29]} 22.
Ne5 {[%clk 0:02:04.3]} 22... Qb6 {[%clk 0:02:27.9]} 23. Rd3 {[%clk 0:01:46.8]}
23... Rad8 {[%clk 0:02:26.3]} 24. Red1 {[%clk 0:01:46.4]} 24... Nd7 {[%clk
0:02:20.8]} 25. Rg3 {[%clk 0:01:34.5]} 25... Nxe5 {[%clk 0:02:06.1]} 26. Bxe5
{[%clk 0:01:33.1]} 26... Bf8 {[%clk 0:02:04.4]} 27. Qe4 {[%clk 0:00:56.2]} 27...
Qxb2 {[%clk 0:01:52.5]} 28. Bxg7 {[%clk 0:00:54.1]} 28... Bxg7 {[%clk
0:01:44.5]} 29. Qg4 {[%clk 0:00:50.9]} 29... Kf8 {[%clk 0:01:41.7]} 30. Qxg7+
{[%clk 0:00:50.6]} 30... Ke7 {[%clk 0:01:42]} 31. Rf3 {[%clk 0:00:45.2]} 31...
Rf8 {[%clk 0:01:41]} 32. Qe5 {[%clk 0:00:25.1]} 32... Qc2 {[%clk 0:01:18.7]} 33.
Qc5+ {[%clk 0:00:23.1]} 33... Ke8 {[%clk 0:01:17.2]} 34. Rdd3 {[%clk 0:00:15.7]}
34... Qc1+ {[%clk 0:01:10.5]} 35. Kh2 {[%clk 0:00:14.8]} 35... Qg5 {[%clk
0:01:10]} 36. Qb6 {[%clk 0:00:10.7]} 36... Rd7 {[%clk 0:01:08.4]} 37. Qa7 {[%clk
0:00:05.4]} 37... Ke7 {[%clk 0:01:01.7]} 38. Qb6 {[%clk 0:00:04]} 38... Ra8
{[%clk 0:00:55.8]} 39. g3 {[%clk 0:00:02.7]} 39... Ra6 {[%clk 0:00:54.7]} 40.
Qb2 {[%clk 0:00:02.3]} 40... b5 {[%clk 0:00:50.4]} 41. cxb5 {[%clk 0:00:02.1]}
41... Qxb5 {[%clk 0:00:47.8]} 42. Qe2 {[%clk 0:00:01.5]} 42... Qd5 {[%clk
0:00:47.4]} 43. Qe3 {[%clk 0:00:02.1]} 43... Rb6 {[%clk 0:00:46.1]} 44. Qxh6
{[%clk 0:00:02]} 44... Rb1 {[%clk 0:00:44.5]} 45. Qf6+ {[%clk 0:00:01.9]} 45...
Ke8 {[%clk 0:00:42.4]} 46. Qh8+ {[%clk 0:00:02.2]} 46... Ke7 {[%clk 0:00:42.4]}
47. Qf6+ {[%clk 0:00:02.7]} 47... Kd6 {[%clk 0:00:42.7]} 48. Qf4+ {[%clk
0:00:02.9]} 48... Ke7 {[%clk 0:00:37.7]} 49. Qxf7+ {[%clk 0:00:03.3]} 49... Kd8
{[%clk 0:00:38.6]} 50. Qf8+ {[%clk 0:00:02.5]} 50... Kc7 {[%clk 0:00:38.8]} 51.
Qf4+ {[%clk 0:00:02.6]} 51... Kb7 {[%clk 0:00:37.1]} 52. Rde3 {[%clk 0:00:01.5]}
52... Qc4 {[%clk 0:00:27.4]} 53. Kg2 {[%clk 0:00:02.1]} 53... Qf1+ {[%clk
0:00:27.2]} 0-1

[Event "Early-Titled-Tuesday-Blitz-March-05-2024"]
[Site "Chess.com"]
[Date "2024.03.05"]
[Round "7"]
[White "eagleclaw07"]
[Black "MarijaKuznecova"]
[Result "1-0"]
[WhiteElo "2830"]
[BlackElo "2365"]
[TimeControl "180+1"]
[EndTime "9:20:08 PST"]
[Termination "eagleclaw07 won by resignation"]

1. e4 {[%clk 0:03:00.9]} 1... c5 {[%clk 0:02:59.6]} 2. Nf3 {[%clk 0:03:01]} 2...
d6 {[%clk 0:02:59]} 3. d4 {[%clk 0:03:01.9]} 3... cxd4 {[%clk 0:02:59.5]} 4.
Nxd4 {[%clk 0:03:02.8]} 4... Nf6 {[%clk 0:03:00]} 5. Nc3 {[%clk 0:03:03.7]} 5...
a6 {[%clk 0:03:00.6]} 6. Be2 {[%clk 0:03:02.6]} 6... e5 {[%clk 0:03:00.1]} 7.
Nb3 {[%clk 0:03:03.3]} 7... Be7 {[%clk 0:03:00]} 8. O-O {[%clk 0:03:04.2]} 8...
O-O {[%clk 0:02:59.1]} 9. Be3 {[%clk 0:03:05.1]} 9... Be6 {[%clk 0:02:59.2]} 10.
Bf3 {[%clk 0:03:03.8]} 10... b5 {[%clk 0:02:55.7]} 11. a3 {[%clk 0:03:02.9]}
11... Nbd7 {[%clk 0:02:53.1]} 12. Qd2 {[%clk 0:03:03.1]} 12... Rc8 {[%clk
0:02:51.7]} 13. Rfd1 {[%clk 0:03:03.3]} 13... Nb6 {[%clk 0:02:51.9]} 14. Qe1
{[%clk 0:03:01.1]} 14... Nc4 {[%clk 0:02:50.7]} 15. Bc1 {[%clk 0:03:01.4]} 15...
Qb6 {[%clk 0:02:38.8]} 16. Be2 {[%clk 0:02:58.4]} 16... Rfd8 {[%clk 0:02:36]}
17. Bxc4 {[%clk 0:02:47.8]} 17... bxc4 {[%clk 0:02:21.2]} 18. Nd2 {[%clk
0:02:47.9]} 18... d5 {[%clk 0:02:20.2]} 19. exd5 {[%clk 0:02:46.4]} 19... Nxd5
{[%clk 0:02:21.1]} 20. Nxd5 {[%clk 0:02:39.6]} 20... Rxd5 {[%clk 0:02:19.4]} 21.
Nf1 {[%clk 0:02:35.5]} 21... Rcd8 {[%clk 0:01:59.3]} 22. Rxd5 {[%clk 0:02:33.6]}
22... Rxd5 {[%clk 0:02:00.2]} 23. Ne3 {[%clk 0:02:30.3]} 23... Rd8 {[%clk
0:01:42.6]} 24. h3 {[%clk 0:01:58.1]} 24... f5 {[%clk 0:01:16]} 25. Rb1 {[%clk
0:01:40.7]} 25... f4 {[%clk 0:00:43.6]} 26. Nf1 {[%clk 0:01:40.8]} 26... Bc5
{[%clk 0:00:35.8]} 27. Bd2 {[%clk 0:01:28.5]} 27... Bf5 {[%clk 0:00:34.6]} 28.
Qxe5 {[%clk 0:01:16.7]} 28... Bxf2+ {[%clk 0:00:33.6]} 29. Kh1 {[%clk
0:01:17.2]} 29... Bxc2 {[%clk 0:00:33.3]} 30. Rc1 {[%clk 0:01:17.7]} 30... Bd3
{[%clk 0:00:29.1]} 31. Bxf4 {[%clk 0:01:12.1]} 31... Bd4 {[%clk 0:00:26.6]} 32.
Qg5 {[%clk 0:01:07.8]} 32... Bxb2 {[%clk 0:00:24.8]} 33. Re1 {[%clk 0:01:03.6]}
33... Qf6 {[%clk 0:00:16.2]} 34. Qg4 {[%clk 0:00:49.9]} 34... Bc3 {[%clk
0:00:13.8]} 35. Rc1 {[%clk 0:00:46.9]} 35... Bb2 {[%clk 0:00:12.3]} 36. Rd1
{[%clk 0:00:45.4]} 36... Bxf1 {[%clk 0:00:08.6]} 37. Rxf1 {[%clk 0:00:42.5]}
37... Rf8 {[%clk 0:00:08.8]} 38. Rf3 {[%clk 0:00:23.2]} 38... Qf5 {[%clk
0:00:06.3]} 39. Qg3 {[%clk 0:00:21.3]} 39... Qd7 {[%clk 0:00:04.7]} 40. Kh2
{[%clk 0:00:11.8]} 40... c3 {[%clk 0:00:04.6]} 41. Be5 {[%clk 0:00:11.6]} 41...
Rxf3 {[%clk 0:00:04.1]} 42. Qxf3 {[%clk 0:00:12.5]} 42... Qe7 {[%clk 0:00:03.3]}
43. Qd5+ {[%clk 0:00:09.5]} 43... Kf8 {[%clk 0:00:02.5]} 44. Bd6 {[%clk
0:00:09.5]} 44... c2 {[%clk 0:00:02.8]} 45. Bxe7+ {[%clk 0:00:09.4]} 45... Kxe7
{[%clk 0:00:03.5]} 46. Qe4+ {[%clk 0:00:10]} 46... Kf6 {[%clk 0:00:03.2]} 47.
Qxc2 {[%clk 0:00:10.9]} 47... Bxa3 {[%clk 0:00:03.8]} 48. Qc3+ {[%clk
0:00:10.9]} 1-0

[Event "Early-Titled-Tuesday-Blitz-March-05-2024"]
[Site "Chess.com"]
[Date "2024.03.05"]
[Round "7"]
[White "Goryachkina"]
[Black "NewYearGirl"]
[Result "1-0"]
[WhiteElo "2690"]
[BlackElo "2393"]
[TimeControl "180+1"]
[EndTime "9:20:10 PST"]
[Termination "Goryachkina won by resignation"]

1. e4 {[%clk 0:02:59.7]} 1... c5 {[%clk 0:03:00.3]} 2. Nf3 {[%clk 0:02:59.6]}
2... d6 {[%clk 0:03:00.8]} 3. d4 {[%clk 0:02:57.2]} 3... cxd4 {[%clk 0:03:01.7]}
4. Nxd4 {[%clk 0:02:57.1]} 4... Nf6 {[%clk 0:03:02.4]} 5. Nc3 {[%clk 0:02:57]}
5... g6 {[%clk 0:03:03.1]} 6. Be2 {[%clk 0:02:56]} 6... Bg7 {[%clk 0:03:03.1]}
7. O-O {[%clk 0:02:56.2]} 7... O-O {[%clk 0:03:02.9]} 8. Be3 {[%clk 0:02:55.8]}
8... Nc6 {[%clk 0:03:03]} 9. f3 {[%clk 0:02:51.9]} 9... Nxd4 {[%clk 0:02:57.6]}
10. Bxd4 {[%clk 0:02:51.9]} 10... Bd7 {[%clk 0:02:58.1]} 11. a4 {[%clk
0:02:49.4]} 11... Bc6 {[%clk 0:02:55.8]} 12. a5 {[%clk 0:02:49.6]} 12... Nd7
{[%clk 0:02:49.2]} 13. Bxg7 {[%clk 0:02:43.9]} 13... Kxg7 {[%clk 0:02:50.1]} 14.
Qd4+ {[%clk 0:02:43.8]} 14... Kg8 {[%clk 0:02:49.6]} 15. Kh1 {[%clk 0:02:40.4]}
15... b6 {[%clk 0:02:43.6]} 16. a6 {[%clk 0:02:21.1]} 16... Nc5 {[%clk
0:02:38.9]} 17. Bc4 {[%clk 0:02:12.3]} 17... Rc8 {[%clk 0:02:35.1]} 18. Rad1
{[%clk 0:02:06]} 18... Qe8 {[%clk 0:02:30.2]} 19. Rd2 {[%clk 0:01:38.9]} 19...
Na4 {[%clk 0:02:27.9]} 20. Nd5 {[%clk 0:01:12]} 20... b5 {[%clk 0:02:26.7]} 21.
Ba2 {[%clk 0:01:05.3]} 21... Bxd5 {[%clk 0:02:04]} 22. Bxd5 {[%clk 0:01:04.6]}
22... Nb6 {[%clk 0:02:04.2]} 23. Bb3 {[%clk 0:01:03.3]} 23... Qc6 {[%clk
0:02:03.9]} 24. f4 {[%clk 0:00:59.4]} 24... Qc5 {[%clk 0:02:01.3]} 25. f5 {[%clk
0:00:49.4]} 25... Qxd4 {[%clk 0:01:57.1]} 26. Rxd4 {[%clk 0:00:50.3]} 26... Nc4
{[%clk 0:01:57.6]} 27. Rb1 {[%clk 0:00:35]} 27... Rc6 {[%clk 0:01:50.7]} 28. Rd5
{[%clk 0:00:21.2]} 28... Rb8 {[%clk 0:01:44.4]} 29. h3 {[%clk 0:00:21]} 29...
Rxa6 {[%clk 0:01:43.4]} 30. fxg6 {[%clk 0:00:20.6]} 30... hxg6 {[%clk
0:01:43.1]} 31. Rxb5 {[%clk 0:00:19.8]} 31... Rxb5 {[%clk 0:01:37.2]} 32. Bxc4
{[%clk 0:00:20.1]} 32... Rab6 {[%clk 0:01:36.6]} 33. Bxb5 {[%clk 0:00:19.8]}
33... Rxb5 {[%clk 0:01:37.5]} 34. b4 {[%clk 0:00:18.9]} 34... a5 {[%clk
0:01:35.8]} 35. c3 {[%clk 0:00:18.8]} 35... axb4 {[%clk 0:01:34.3]} 36. cxb4
{[%clk 0:00:19]} 36... Kg7 {[%clk 0:01:33.3]} 37. Kg1 {[%clk 0:00:19]} 37... Kf6
{[%clk 0:01:31.1]} 38. Kf2 {[%clk 0:00:19.5]} 38... Ke5 {[%clk 0:01:31.1]} 39.
Ke3 {[%clk 0:00:19.9]} 39... g5 {[%clk 0:01:29.6]} 40. g3 {[%clk 0:00:19.8]}
40... e6 {[%clk 0:01:21.4]} 41. h4 {[%clk 0:00:19.4]} 41... gxh4 {[%clk
0:01:17.9]} 42. gxh4 {[%clk 0:00:20.3]} 42... Kf6 {[%clk 0:01:13]} 43. Kd4
{[%clk 0:00:20.6]} 43... d5 {[%clk 0:00:43.8]} 44. exd5 {[%clk 0:00:20.3]} 44...
Rxd5+ {[%clk 0:00:43.8]} 45. Kc4 {[%clk 0:00:20.6]} 45... Rh5 {[%clk 0:00:44.1]}
46. b5 {[%clk 0:00:20.8]} 46... Rxh4+ {[%clk 0:00:44.4]} 47. Kc5 {[%clk
0:00:21.2]} 47... e5 {[%clk 0:00:38.9]} 48. b6 {[%clk 0:00:21]} 48... Rh8 {[%clk
0:00:38.7]} 49. Kd6 {[%clk 0:00:21.3]} 49... e4 {[%clk 0:00:37.6]} 50. b7 {[%clk
0:00:20.3]} 50... Kf5 {[%clk 0:00:32.7]} 51. b8=Q {[%clk 0:00:18]} 51... Rxb8
{[%clk 0:00:32.9]} 52. Rxb8 {[%clk 0:00:18.7]} 52... e3 {[%clk 0:00:33.4]} 53.
Re8 {[%clk 0:00:13.5]} 53... Kf4 {[%clk 0:00:32]} 54. Kd5 {[%clk 0:00:13.9]}
54... Kf3 {[%clk 0:00:29.4]} 55. Kd4 {[%clk 0:00:14.2]} 55... e2 {[%clk
0:00:29.8]} 56. Kd3 {[%clk 0:00:14.7]} 1-0

[Event "Early-Titled-Tuesday-Blitz-March-05-2024"]
[Site "Chess.com"]
[Date "2024.03.05"]
[Round "7"]
[White "ploxoi"]
[Black "chucksterf10"]
[Result "0-1"]
[WhiteElo "2445"]
[BlackElo "2581"]
[TimeControl "180+1"]
[EndTime "9:20:11 PST"]
[Termination "chucksterf10 won by resignation"]

1. d4 {[%clk 0:03:00.9]} 1... a6 {[%clk 0:03:00.9]} 2. c4 {[%clk 0:03:00.7]}
2... Nf6 {[%clk 0:02:59.3]} 3. Nc3 {[%clk 0:02:59.6]} 3... c5 {[%clk 0:02:59.3]}
4. Nf3 {[%clk 0:02:50.4]} 4... cxd4 {[%clk 0:02:57]} 5. Nxd4 {[%clk 0:02:51.3]}
5... g6 {[%clk 0:02:57.1]} 6. e4 {[%clk 0:02:51.2]} 6... Nc6 {[%clk 0:02:57.8]}
7. Be3 {[%clk 0:02:51.2]} 7... Bg7 {[%clk 0:02:57.8]} 8. Be2 {[%clk 0:02:51.3]}
8... O-O {[%clk 0:02:56.4]} 9. O-O {[%clk 0:02:51.8]} 9... d6 {[%clk 0:02:56.5]}
10. f3 {[%clk 0:02:52.2]} 10... Bd7 {[%clk 0:02:56.6]} 11. Qd2 {[%clk
0:02:52.6]} 11... Rc8 {[%clk 0:02:55]} 12. Rac1 {[%clk 0:02:52.3]} 12... Nxd4
{[%clk 0:02:53.2]} 13. Bxd4 {[%clk 0:02:52.1]} 13... Qa5 {[%clk 0:02:52.1]} 14.
Rfd1 {[%clk 0:02:51.5]} 14... Qc7 {[%clk 0:02:42.8]} 15. Nd5 {[%clk 0:02:45.6]}
15... Nxd5 {[%clk 0:02:39.1]} 16. Bxg7 {[%clk 0:02:38.7]} 16... Kxg7 {[%clk
0:02:38.2]} 17. cxd5 {[%clk 0:02:38.7]} 17... Qb6+ {[%clk 0:02:38.4]} 18. Kf1
{[%clk 0:02:35.4]} 18... Bb5 {[%clk 0:02:38.4]} 19. b3 {[%clk 0:02:20.2]} 19...
h5 {[%clk 0:02:32.2]} 20. Rc3 {[%clk 0:02:10]} 20... h4 {[%clk 0:02:27.4]} 21.
Rdc1 {[%clk 0:02:05.8]} 21... Rxc3 {[%clk 0:02:27.7]} 22. Qxc3+ {[%clk
0:02:05.9]} 22... Kg8 {[%clk 0:02:28.1]} 23. Rc2 {[%clk 0:01:37.2]} 23... a5
{[%clk 0:02:17]} 24. a4 {[%clk 0:01:30.4]} 24... Bxe2+ {[%clk 0:02:16.7]} 25.
Rxe2 {[%clk 0:01:31]} 25... Qa6 {[%clk 0:02:12.8]} 26. Kf2 {[%clk 0:01:29.4]}
26... b6 {[%clk 0:02:12.9]} 27. Rc2 {[%clk 0:01:29.4]} 27... Kh7 {[%clk
0:02:03.3]} 28. Qc4 {[%clk 0:01:26.2]} 28... Qa7 {[%clk 0:02:03.1]} 29. Qc7
{[%clk 0:01:23.1]} 29... Qa6 {[%clk 0:01:50.5]} 30. Qxe7 {[%clk 0:01:08.1]}
30... Qd3 {[%clk 0:01:50.3]} 31. Re2 {[%clk 0:00:41.6]} 31... Qd4+ {[%clk
0:01:49.4]} 32. Kf1 {[%clk 0:00:41.8]} 32... Kg7 {[%clk 0:01:30.9]} 33. Qc7
{[%clk 0:00:18.3]} 33... h3 {[%clk 0:01:26.6]} 34. g3 {[%clk 0:00:16.9]} 34...
Qd3 {[%clk 0:01:27.1]} 35. Kf2 {[%clk 0:00:16.6]} 35... Qxb3 {[%clk 0:01:23.5]}
36. Qc6 {[%clk 0:00:15.3]} 36... Qb4 {[%clk 0:01:21.4]} 37. Re3 {[%clk
0:00:09.7]} 37... f5 {[%clk 0:01:19.3]} 38. exf5 {[%clk 0:00:08.8]} 38... Qd2+
{[%clk 0:01:18.1]} 39. Re2 {[%clk 0:00:08.9]} 39... Qd4+ {[%clk 0:01:18.8]} 40.
Kf1 {[%clk 0:00:08]} 40... Rxf5 {[%clk 0:01:18.4]} 41. Qd7+ {[%clk 0:00:05.8]}
41... Kh6 {[%clk 0:01:18.5]} 42. f4 {[%clk 0:00:05.7]} 42... Qd3 {[%clk
0:00:56.9]} 43. Kf2 {[%clk 0:00:03.6]} 43... Qd4+ {[%clk 0:00:41.5]} 44. Kf1
{[%clk 0:00:03.9]} 44... Qd1+ {[%clk 0:00:24.7]} 45. Kf2 {[%clk 0:00:03.8]}
45... Rxd5 {[%clk 0:00:25.5]} 46. Qxh3+ {[%clk 0:00:03.4]} 46... Rh5 {[%clk
0:00:26.2]} 47. Qg2 {[%clk 0:00:02.1]} 47... Qd4+ {[%clk 0:00:26]} 48. Kf1
{[%clk 0:00:02.2]} 48... Rc5 {[%clk 0:00:25.5]} 49. Qf3 {[%clk 0:00:01.6]} 49...
Qd1+ {[%clk 0:00:25.5]} 50. Kg2 {[%clk 0:00:01.9]} 50... Rc1 {[%clk 0:00:21.5]}
51. h4 {[%clk 0:00:01.6]} 51... Qh1+ {[%clk 0:00:20.9]} 52. Kf2 {[%clk
0:00:01.8]} 52... Rf1+ {[%clk 0:00:21.6]} 0-1

[Event "Early-Titled-Tuesday-Blitz-March-05-2024"]
[Site "Chess.com"]
[Date "2024.03.05"]
[Round "7"]
[White "ansko1999"]
[Black "elmusmolamas"]
[Result "1-0"]
[WhiteElo "2715"]
[BlackElo "2509"]
[TimeControl "180+1"]
[EndTime "9:20:12 PST"]
[Termination "ansko1999 won on time"]

1. Nf3 {[%clk 0:03:00.9]} 1... Nc6 {[%clk 0:02:58.6]} 2. e4 {[%clk 0:02:58.2]}
2... e5 {[%clk 0:02:51.1]} 3. Bb5 {[%clk 0:02:57.7]} 3... Nf6 {[%clk 0:02:49.4]}
4. Nc3 {[%clk 0:02:51.2]} 4... Bb4 {[%clk 0:02:45.7]} 5. O-O {[%clk 0:02:48.2]}
5... O-O {[%clk 0:02:46.4]} 6. d3 {[%clk 0:02:44.8]} 6... d6 {[%clk 0:02:46.7]}
7. Bxc6 {[%clk 0:02:39.7]} 7... bxc6 {[%clk 0:02:47.6]} 8. Bd2 {[%clk 0:02:40]}
8... h6 {[%clk 0:02:40.6]} 9. h3 {[%clk 0:02:39.5]} 9... Rb8 {[%clk 0:02:39.7]}
10. a3 {[%clk 0:02:36.2]} 10... Bc5 {[%clk 0:02:40]} 11. Na4 {[%clk 0:02:34.6]}
11... Bb6 {[%clk 0:02:38.3]} 12. Nxb6 {[%clk 0:02:31.5]} 12... Rxb6 {[%clk
0:02:35.9]} 13. b3 {[%clk 0:02:27.9]} 13... Re8 {[%clk 0:02:33.1]} 14. Be3
{[%clk 0:02:19.7]} 14... Rb7 {[%clk 0:02:33.4]} 15. Qd2 {[%clk 0:02:18.4]} 15...
Nh5 {[%clk 0:02:30.2]} 16. Qa5 {[%clk 0:02:13]} 16... c5 {[%clk 0:02:26.6]} 17.
Nh2 {[%clk 0:02:07.9]} 17... Qh4 {[%clk 0:02:21.1]} 18. Qd2 {[%clk 0:02:02.5]}
18... Re6 {[%clk 0:02:08.3]} 19. f4 {[%clk 0:01:46.1]} 19... exf4 {[%clk
0:01:59.8]} 20. Bxf4 {[%clk 0:01:47]} 20... Nxf4 {[%clk 0:01:59.2]} 21. Rxf4
{[%clk 0:01:46.1]} 21... Qg5 {[%clk 0:01:49.5]} 22. Nf3 {[%clk 0:01:45.8]} 22...
Qe7 {[%clk 0:01:36.9]} 23. Rf1 {[%clk 0:01:42.2]} 23... Rg6 {[%clk 0:01:31]} 24.
Nh4 {[%clk 0:01:39.8]} 24... Rg3 {[%clk 0:01:17.4]} 25. Qf2 {[%clk 0:01:32.6]}
25... Qg5 {[%clk 0:01:12.1]} 26. Rxf7 {[%clk 0:01:10.6]} 26... Bxh3 {[%clk
0:01:10.5]} 27. Rf8+ {[%clk 0:00:59.4]} 27... Kh7 {[%clk 0:01:09.6]} 28. Kh2
{[%clk 0:00:36.1]} 28... Bxg2 {[%clk 0:00:13.5]} 29. Nxg2 {[%clk 0:00:11.8]}
29... Rg4 {[%clk 0:00:09.2]} 30. Qf5+ {[%clk 0:00:08.9]} 30... Qxf5 {[%clk
0:00:09.8]} 31. R1xf5 {[%clk 0:00:08.3]} 31... a5 {[%clk 0:00:07.9]} 32. a4
{[%clk 0:00:08.2]} 32... c4 {[%clk 0:00:06.1]} 33. dxc4 {[%clk 0:00:03.7]} 33...
Rxe4 {[%clk 0:00:05.9]} 34. R5f7 {[%clk 0:00:04.3]} 34... d5 {[%clk 0:00:03]}
35. cxd5 {[%clk 0:00:03.4]} 35... Rb6 {[%clk 0:00:03.8]} 36. Rf4 {[%clk
0:00:02.6]} 36... Re2 {[%clk 0:00:03.4]} 37. Rf2 {[%clk 0:00:02.8]} 37... Re5
{[%clk 0:00:03.3]} 38. R8f5 {[%clk 0:00:03]} 38... Re4 {[%clk 0:00:02.7]} 39.
R5f4 {[%clk 0:00:03.2]} 39... Re5 {[%clk 0:00:02.8]} 40. Rd4 {[%clk 0:00:03]}
40... Rg6 {[%clk 0:00:02.6]} 41. Nf4 {[%clk 0:00:03.3]} 41... Rg4 {[%clk
0:00:02]} 42. Kh3 {[%clk 0:00:02.6]} 42... Reg5 {[%clk 0:00:01.9]} 43. Rf3
{[%clk 0:00:02.1]} 43... h5 {[%clk 0:00:02.4]} 44. Rdd3 {[%clk 0:00:01.8]} 44...
Rg1 {[%clk 0:00:02.5]} 45. Rf2 {[%clk 0:00:01.6]} 45... R5g4 {[%clk 0:00:02.8]}
46. Kh2 {[%clk 0:00:01.6]} 46... Rb1 {[%clk 0:00:02.2]} 47. Nh3 {[%clk
0:00:02.1]} 1-0

[Event "Early-Titled-Tuesday-Blitz-March-05-2024"]
[Site "Chess.com"]
[Date "2024.03.05"]
[Round "7"]
[White "Flaccidmoves"]
[Black "Ajedrez_con_German"]
[Result "0-1"]
[WhiteElo "2452"]
[BlackElo "2589"]
[TimeControl "180+1"]
[EndTime "9:20:12 PST"]
[Termination "Ajedrez_con_German won by resignation"]

1. Nf3 {[%clk 0:03:00.9]} 1... e6 {[%clk 0:02:58.5]} 2. d4 {[%clk 0:02:57.6]}
2... Nf6 {[%clk 0:02:58.7]} 3. g3 {[%clk 0:02:55.2]} 3... b6 {[%clk 0:02:58.7]}
4. Bg2 {[%clk 0:02:54.7]} 4... Bb7 {[%clk 0:02:59.6]} 5. O-O {[%clk 0:02:55]}
5... Be7 {[%clk 0:02:59.6]} 6. c4 {[%clk 0:02:52.2]} 6... O-O {[%clk 0:02:59.2]}
7. Nc3 {[%clk 0:02:51.5]} 7... Ne4 {[%clk 0:02:59.4]} 8. d5 {[%clk 0:02:42.9]}
8... Nxc3 {[%clk 0:02:58.3]} 9. bxc3 {[%clk 0:02:43.8]} 9... Bf6 {[%clk
0:02:57.8]} 10. Nd4 {[%clk 0:02:33.9]} 10... e5 {[%clk 0:02:54.2]} 11. Nf5
{[%clk 0:02:33.7]} 11... d6 {[%clk 0:02:54.4]} 12. e4 {[%clk 0:02:23.3]} 12...
Bc8 {[%clk 0:02:54.1]} 13. Qf3 {[%clk 0:02:00.3]} 13... Nd7 {[%clk 0:02:49.9]}
14. a4 {[%clk 0:01:36.8]} 14... a5 {[%clk 0:02:49.5]} 15. Ba3 {[%clk 0:01:36.4]}
15... g6 {[%clk 0:02:29.2]} 16. Nh6+ {[%clk 0:01:30.8]} 16... Kg7 {[%clk
0:02:29.7]} 17. Ng4 {[%clk 0:01:30]} 17... h5 {[%clk 0:02:27.7]} 18. Nxf6 {[%clk
0:01:27.6]} 18... Qxf6 {[%clk 0:02:27.2]} 19. Qe2 {[%clk 0:01:23.2]} 19... Ba6
{[%clk 0:02:24.4]} 20. Rab1 {[%clk 0:01:14.9]} 20... Rae8 {[%clk 0:02:10.9]} 21.
Bh3 {[%clk 0:01:12.1]} 21... Bc8 {[%clk 0:02:01.9]} 22. Rbe1 {[%clk 0:00:47.2]}
22... Re7 {[%clk 0:01:55.6]} 23. f4 {[%clk 0:00:37]} 23... exf4 {[%clk 0:01:53]}
24. gxf4 {[%clk 0:00:34.9]} 24... Qh4 {[%clk 0:01:48.5]} 25. Bxd7 {[%clk
0:00:20.5]} 25... Bxd7 {[%clk 0:01:48.4]} 26. e5 {[%clk 0:00:20.6]} 26... Rfe8
{[%clk 0:01:32.5]} 27. Qg2 {[%clk 0:00:16.1]} 27... Bh3 {[%clk 0:01:30.2]} 28.
Qg3 {[%clk 0:00:14.9]} 28... Qxg3+ {[%clk 0:01:28.5]} 29. hxg3 {[%clk
0:00:15.8]} 29... Bxf1 {[%clk 0:01:29.1]} 30. Kxf1 {[%clk 0:00:15.6]} 30... g5
{[%clk 0:01:26.4]} 31. Kf2 {[%clk 0:00:15.1]} 31... h4 {[%clk 0:01:26.8]} 32.
Kf3 {[%clk 0:00:12.3]} 32... hxg3 {[%clk 0:01:25.5]} 33. Rg1 {[%clk 0:00:09.6]}
33... gxf4 {[%clk 0:01:25.2]} 34. exd6 {[%clk 0:00:09.1]} 34... cxd6 {[%clk
0:01:11.8]} 35. Bxd6 {[%clk 0:00:09.3]} 35... Re3+ {[%clk 0:01:09.8]} 36. Kxf4
{[%clk 0:00:09.6]} 36... R8e4+ {[%clk 0:01:09.9]} 37. Kf5 {[%clk 0:00:10]} 37...
Rxc4 {[%clk 0:01:05.5]} 38. Be5+ {[%clk 0:00:09.7]} 38... Rxe5+ {[%clk
0:00:58.4]} 39. Kxe5 {[%clk 0:00:09.6]} 39... Rxc3 {[%clk 0:00:59]} 40. d6
{[%clk 0:00:09.4]} 40... Rd3 {[%clk 0:00:53.4]} 41. d7 {[%clk 0:00:07.8]} 41...
Rxd7 {[%clk 0:00:48.3]} 42. Rxg3+ {[%clk 0:00:08.2]} 42... Kf8 {[%clk
0:00:48.3]} 43. Rb3 {[%clk 0:00:07.7]} 43... Rb7 {[%clk 0:00:44.5]} 44. Kf6
{[%clk 0:00:07.8]} 44... Ke8 {[%clk 0:00:39.4]} 45. Rd3 {[%clk 0:00:07.6]} 45...
Rd7 {[%clk 0:00:36.7]} 46. Re3+ {[%clk 0:00:06.4]} 46... Kd8 {[%clk 0:00:36.5]}
47. Rb3 {[%clk 0:00:05.9]} 47... Kc7 {[%clk 0:00:35.9]} 48. Rc3+ {[%clk
0:00:05.8]} 48... Kb7 {[%clk 0:00:36.4]} 49. Rc2 {[%clk 0:00:04.5]} 49... Rd4
{[%clk 0:00:36]} 50. Ra2 {[%clk 0:00:04.5]} 50... Rf4+ {[%clk 0:00:34.9]} 51.
Ke5 {[%clk 0:00:05.2]} 51... Rf1 {[%clk 0:00:35.4]} 52. Rh2 {[%clk 0:00:03.8]}
52... f6+ {[%clk 0:00:32.6]} 53. Ke6 {[%clk 0:00:03.7]} 53... f5 {[%clk
0:00:32.5]} 54. Kd6 {[%clk 0:00:01.7]} 54... Rd1+ {[%clk 0:00:31]} 55. Ke5
{[%clk 0:00:01.5]} 55... Ra1 {[%clk 0:00:28.3]} 56. Rh6 {[%clk 0:00:02.4]} 56...
Rxa4 {[%clk 0:00:27.6]} 57. Kxf5 {[%clk 0:00:03.3]} 57... Rd4 {[%clk 0:00:27]}
58. Ke5 {[%clk 0:00:03.7]} 58... Rd8 {[%clk 0:00:27]} 0-1